bitfinex-derivatives/quotes_ETHF0:USTF0_20250905
["timestamp","ask_amount","ask_price","bid_price","bid_amount"]
[1757113353510,0.1195,4319.0,4318.9,3.2078]
[1757113353715,0.8386,4319.0,4318.9,3.8564]
[1757113354114,0.8386,4319.0,4318.9,4.1554]
[1757113355813,0.8386,4319.0,4318.9,3.4192]
[1757113356114,1.40726951,4319.0,4318.9,3.4398]
[1757113356818,1.40726951,4319.0,4318.9,3.6512]
[1757113357311,1.40726951,4319.0,4318.9,3.4398]
[1757113358818,1.40726951,4319.0,4318.9,3.6512]
[1757113359417,1.40726951,4319.0,4318.9,3.4398]
[1757113361316,1.40726951,4319.0,4318.9,3.6512]
[1757113361714,1.40726951,4319.0,4318.9,3.4192]
[1757113361924,1.40726951,4319.0,4318.9,3.6512]
[1757113362121,1.40726951,4319.0,4318.9,3.8564]
[1757113367518,1.40726951,4319.0,4318.9,4.1554]
[1757113369017,0.87716951,4319.0,4318.9,4.1554]
[1757113369322,1.09036951,4319.0,4318.9,4.1554]
[1757113369518,1.20686951,4319.0,4318.9,4.1554]
[1757113370120,1.42026951,4319.0,4318.9,4.1554]
[1757113370719,1.42026951,4319.0,4318.9,3.8564]
[1757113371023,0.99366951,4319.0,4318.9,4.1511]
[1757113371223,1.09036951,4319.0,4318.9,4.1511]
[1757113371834,1.20686951,4319.0,4318.9,4.1511]
[1757113373819,0.121,4319.5,4318.9,3.8564]
[1757113374025,1.08096308,4319.4,4319.3,0.6968]
[1757113374525,1.29436308,4319.4,4319.3,0.6968]
[1757113374725,1.29436308,4319.4,4319.3,0.4021]
[1757113375127,1.29436308,4319.4,4319.3,0.2048]
[1757113376824,1.29436308,4319.4,4319.3,0.4021]
[1757113377024,1.29436308,4319.4,4319.3,0.6968]
[1757113377329,1.29436308,4319.4,4319.3,0.4021]
[1757113379035,1.29436308,4319.4,4319.3,0.2048]
[1757113379334,1.29436308,4319.4,4319.2,0.232]
[1757113379533,1.29436308,4319.3,4319.2,0.232]
[1757113379929,0.8418,4319.0,4318.9,3.2078]
[1757113380134,1.41086308,4319.0,4318.9,3.72369137]
[1757113380331,1.41086308,4319.0,4318.9,0.72069137]
[1757113380733,1.41086308,4319.0,4318.9,0.48869137]
[1757113380933,1.41086308,4319.0,4318.9,0.72069137]
[1757113382235,1.41086308,4319.0,4318.9,0.91799137]
[1757113382435,1.41086308,4319.0,4318.9,1.21269137]
[1757113383345,1.41086308,4319.0,4318.9,4.42049137]
[1757113384339,0.86776308,4319.0,4318.9,4.42049137]
[1757113384539,0.56906308,4319.0,4318.9,4.42049137]
[1757113384737,0.56906308,4319.0,4318.9,4.12579137]
[1757113384938,0.2987,4319.2,4318.9,4.12579137]
[1757113385134,0.56906308,4319.1,4319.0,0.78619137]
[1757113385333,0.56906308,4319.3,4319.0,1.01772137]
[1757113385545,0.5119,4319.9,4319.8,0.4021]
[1757113385744,1.08168862,4319.9,4319.8,0.6968]
[1757113386239,0.56978862,4319.9,4319.8,0.6968]
[1757113386542,0.86848862,4319.9,4319.8,0.6968]
[1757113386939,1.08168862,4319.9,4319.8,0.6968]
[1757113387345,1.29508862,4319.9,4319.8,0.6968]
[1757113388347,1.29508862,4319.9,4319.8,0.4021]
[1757113393951,1.29508862,4319.9,4319.8,0.6341]
[1757113397353,1.29508862,4319.9,4319.8,0.4368]
[1757113397548,0.56978862,4319.9,4319.8,0.9176566]
[1757113397752,0.2987,4320.4,4319.9,0.2947]
[1757113397947,1.29419631,4320.3,4320.2,0.4021]
[1757113398151,1.29419631,4320.3,4320.2,0.6968]
[1757113398347,1.29419631,4320.3,4320.2,0.4021]
[1757113399054,1.29419631,4320.3,4320.2,0.6341]
[1757113401753,1.29419631,4320.3,4320.2,0.9262]
[1757113402651,1.29419631,4320.3,4320.2,0.6341]
[1757113404854,1.29419631,4320.3,4320.2,0.9262]
[1757113405747,1.29419631,4320.3,4320.2,0.6341]
[1757113405954,1.29419631,4320.3,4320.2,0.9262]
[1757113406558,0.5119,4320.3,4320.2,0.9262]
[1757113407349,0.1165,4321.0,4320.3,0.2921]
[1757113407554,0.2032,4320.6,4320.5,0.6919]
[1757113407756,0.2032,4320.6,4320.5,0.9239]
[1757113407957,0.5039,4320.6,4320.5,0.9239]
[1757113409262,0.2032,4320.2,4320.1,3.4999]
[1757113409466,0.5039,4320.2,4320.1,4.41636439]
[1757113410162,0.3007,4320.2,4320.1,4.41636439]
[1757113410667,0.5039,4320.2,4320.1,4.1317]
[1757113410859,0.5039,4320.2,4320.1,4.41631378]
[1757113411560,0.5039,4320.2,4320.1,4.18431378]
[1757113411761,0.5039,4320.2,4320.1,4.41631378]
[1757113414663,0.3007,4320.2,4320.1,4.41631378]
[1757113414864,0.1167,4320.5,4320.4,0.3998]
[1757113415068,0.3199,4320.5,4320.4,0.9239]
[1757113415462,0.6206,4320.5,4320.4,0.9239]
[1757113416570,0.6206,4320.5,4320.4,0.6919]
[1757113416771,0.6206,4320.5,4320.4,0.9239]
[1757113417566,0.8207,4320.5,4320.4,0.3998]
[1757113417874,0.8207,4320.5,4320.4,0.232]
[1757113418074,0.52,4320.5,4320.4,0.232]
[1757113418771,0.8207,4320.5,4320.4,0.4252]
[1757113424176,0.8207,4320.5,4320.4,0.1932]
[1757113424477,0.8207,4320.5,4320.4,0.28479122]
[1757113424683,0.8207,4320.5,4320.4,0.51679122]
[1757113425373,0.8207,4320.5,4320.4,0.70999122]
[1757113426280,1.39006543,4320.5,4320.4,0.70999122]
[1757113426584,1.39006543,4320.5,4320.4,1.20869122]
[1757113430577,1.07326543,4320.5,4320.4,1.20869122]
[1757113430782,0.5039,4320.5,4320.4,1.20869122]
[1757113431284,0.5039,4320.5,4320.4,0.91659122]
[1757113431285,0.824,4320.5,4320.4,0.91659122]
[1757113431685,0.824,4320.5,4320.4,1.21569122]
[1757113432388,0.2027,4320.6,4320.5,0.712]
[1757113432687,1.09320219,4320.6,4320.5,0.99679122]
[1757113432884,1.29620219,4320.6,4320.5,0.99679122]
[1757113433581,1.29620219,4320.6,4320.5,0.69769122]
[1757113434280,1.29620219,4320.6,4320.5,0.99716626]
[1757113434875,1.29620219,4320.6,4320.5,0.69806626]
[1757113435087,1.29620219,4320.6,4320.5,0.93006626]
[1757113438386,1.29620219,4320.6,4320.5,0.69806626]
[1757113438589,1.29620219,4320.6,4320.5,0.51716626]
[1757113439389,1.29620219,4320.6,4320.5,0.28516626]
[1757113440299,0.3208,4320.4,4319.5,3.2078]
[1757113440588,0.1171,4320.5,4319.5,3.4069]
[1757113440589,0.7265,4319.6,4319.5,3.4069]
[1757113440781,0.7265,4319.6,4319.5,3.9401]
[1757113441391,1.29681594,4319.6,4319.5,3.9401]
[1757113442088,1.29681594,4319.6,4319.5,4.1539]
[1757113442295,0.3208,4319.8,4319.5,3.9723]
[1757113442495,0.1171,4320.0,4319.9,0.1991]
[1757113442496,0.5228,4320.0,4319.9,0.1991]
[1757113442700,0.8436,4320.0,4319.9,0.7323]
[1757113442995,1.41361466,4320.0,4319.9,0.7323]
[1757113443194,0.57001466,4320.0,4319.9,0.9461]
[1757113443394,0.7265,4320.4,4320.3,0.7141]
[1757113443584,1.29641855,4320.4,4320.3,0.7141]
[1757113445000,1.29641855,4320.4,4320.3,0.1991]
[1757113445195,1.29641855,4320.4,4320.2,0.232]
[1757113445394,0.56991855,4320.3,4320.0,3.2078]
[1757113445593,0.1171,4320.5,4320.0,3.4398]
[1757113445594,0.7265,4320.1,4320.0,3.4398]
[1757113445799,1.29641855,4320.1,4320.0,3.4398]
[1757113445993,1.29641855,4320.1,4320.0,3.2078]
[1757113447104,0.7265,4319.9,4319.8,0.232]
[1757113447296,1.29641855,4319.9,4319.8,0.232]
[1757113447799,1.29641855,4319.9,4319.4,0.232]
[1757113447998,0.4057,4319.6,4319.5,0.1991]
[1757113448199,1.29641855,4319.6,4319.5,0.5003]
[1757113449097,0.1171,4319.5,4319.4,0.232]
[1757113449403,0.8436,4319.5,4319.4,0.232]
[1757113449602,0.3208,4319.4,4319.3,3.2078]
[1757113449795,6.4566771,4319.4,4318.2,3.2078]
[1757113449993,3.2078,4318.9,4318.3,0.3012]
[1757113450194,0.56934069,4318.8,4318.5,0.3187]
[1757113450496,0.56934069,4318.8,4318.6,0.3012]
[1757113450700,0.56934069,4318.8,4318.7,0.3012]
[1757113452406,0.56934069,4318.8,4318.5,0.4208]
[1757113452608,0.56934069,4318.8,4318.2,3.509]
[1757113453101,0.56934069,4318.8,4318.4,0.3012]
[1757113453307,0.56804854,4318.7,4318.6,0.3012]
[1757113454106,0.56804854,4318.7,4318.2,3.2078]
[1757113454107,4.56804854,4318.7,4318.2,3.2078]
[1757113454312,3.2078,4318.9,4318.2,3.509]
[1757113454313,0.80104854,4318.6,4318.2,3.509]
[1757113454514,0.233,4318.6,4318.2,3.2078]
[1757113454711,0.233,4318.6,4318.2,3.4069]
[1757113454912,0.233,4318.6,4318.3,0.3012]
[1757113455306,0.233,4318.6,4318.2,3.4069]
[1757113455816,0.233,4318.6,4318.2,3.2078]
[1757113456205,0.233,4318.6,4318.3,0.3012]
[1757113456905,0.233,4318.6,4318.0,0.3187]
[1757113457107,0.233,4318.6,4318.1,0.1991]
[1757113457407,0.233,4318.6,4318.3,0.3012]
[1757113457708,0.233,4318.6,4318.1,0.5003]
[1757113457905,0.233,4318.6,4318.5,0.1196]
[1757113458111,0.233,4318.6,4318.5,0.4208]
[1757113462314,0.233,4318.6,4318.5,0.6199]
[1757113465223,0.234,4318.6,4318.5,0.6199]
[1757113465523,0.234,4318.6,4318.5,0.8302]
[1757113465821,0.233,4318.8,4318.6,0.2899]
[1757113466012,0.233,4318.8,4318.7,0.6972]
[1757113467121,0.80138861,4318.8,4318.7,0.6972]
[1757113468524,0.56838861,4318.8,4318.7,0.6972]
[1757113468726,0.80138861,4318.8,4318.7,0.6972]
[1757113469323,0.56838861,4318.8,4318.7,0.6972]
[1757113469522,0.80138861,4318.8,4318.7,0.6972]
[1757113471027,0.80238861,4318.8,4318.7,0.6972]
[1757113472829,0.80238861,4318.8,4318.7,0.2899]
[1757113474843,0.80238861,4318.8,4318.7,0.4869]
[1757113475438,0.80238861,4318.8,4318.7,0.6972]
[1757113475439,0.80038861,4318.8,4318.7,0.6972]
[1757113475947,0.80215425,4318.8,4318.7,0.6972]
[1757113476645,0.80315425,4318.8,4318.7,0.6972]
[1757113479040,0.80215425,4318.8,4318.7,0.6972]
[1757113479247,2.05328065,4318.8,4318.7,0.6972]
[1757113485850,2.05428065,4318.8,4318.7,0.6972]
[1757113488853,0.80415425,4318.8,4318.7,0.2899]
[1757113491256,0.80612676,4318.8,4318.7,0.2899]
[1757113496653,4.80612676,4318.8,4318.1,0.3033]
[1757113496856,3.2078,4318.2,4318.1,0.3033]
[1757113497049,5.26151564,4318.2,4318.1,0.3033]
[1757113497454,8.24250676,4318.2,4317.0,0.3249]
[1757113497657,3.2078,4317.2,4316.6,0.3033]
[1757113497851,1.25046687,4317.0,4316.9,0.4028]
[1757113498055,0.57112676,4317.0,4316.9,0.7061]
[1757113503352,0.57112676,4317.0,4316.9,0.3033]
[1757113508864,0.57112676,4317.0,4316.9,0.5086]
[1757113514076,0.57112676,4317.0,4316.9,0.7061]
[1757113516464,0.57112676,4317.0,4316.9,0.5086]
[1757113516664,0.57112676,4317.0,4316.9,0.3033]
[1757113517462,0.57112676,4317.0,4316.9,0.5086]
[1757113518765,0.57112676,4317.0,4316.9,0.7061]
[1757113520171,0.80412676,4317.0,4316.9,0.7061]
[1757113530473,2.05481733,4317.0,4316.9,0.7061]
[1757113531480,2.05482869,4317.0,4316.9,0.7061]
[1757113532384,0.80412676,4317.0,4316.9,0.7061]
[1757113532681,1.483717,4317.0,4316.9,0.7061]
[1757113532975,2.05484376,4317.0,4316.9,0.7061]
[1757113534575,0.80412676,4317.0,4316.9,0.3033]
[1757113537277,0.80412676,4317.0,4316.5,0.1224]
[1757113537482,4.45853368,4316.6,4316.5,0.1224]
[1757113537676,4.01192676,4316.6,4316.5,0.1224]
[1757113537873,4.01192676,4316.6,4316.5,0.3162]
[1757113538178,4.01192676,4316.6,4316.5,0.8203]
[1757113540675,4.01192676,4316.6,4316.5,0.6126]
[1757113540880,4.01192676,4316.6,4316.5,0.4188]
[1757113541886,4.01192676,4316.6,4316.5,0.6126]
[1757113545789,8.24359676,4316.6,4316.1,0.2964]
[1757113545990,1.24934816,4316.3,4316.0,0.1224]
[1757113546184,3.2078,4316.1,4316.0,0.4188]
[1757113546386,3.77892676,4316.1,4316.0,0.4188]
[1757113546589,3.77892676,4316.1,4316.0,0.6126]
[1757113550291,3.78072676,4316.1,4316.0,0.6126]
[1757113557701,3.78072676,4316.1,4316.0,0.4188]
[1757113560400,3.78072676,4316.1,4316.0,0.6302]
[1757113561391,5.03007492,4316.1,4315.5,0.1224]
[1757113561696,0.57112676,4316.0,4315.6,0.694]
[1757113561889,1.24934816,4316.3,4315.9,0.694]
[1757113562087,33.23734816,4317.0,4316.5,0.1162]
[1757113562394,2.21144816,4316.9,4316.8,0.694]
[1757113564404,2.21144816,4316.9,4316.5,0.1162]
[1757113564900,2.21144816,4316.9,4316.1,3.2078]
[1757113565102,2.21144816,4316.9,4316.3,0.2899]
[1757113565601,2.21144816,4316.9,4316.4,0.23166]
[1757113566095,0.5182,4316.8,4316.7,0.2114]
[1757113566304,0.7291,4316.8,4316.7,0.694]
[1757113569092,1.24934816,4317.4,4317.0,0.5203]
[1757113569294,0.233,4317.5,4317.4,0.694]
[1757113572605,0.4317,4317.5,4317.4,0.694]
[1757113574101,1.32553323,4317.5,4317.4,0.694]
[1757113574500,1.53643323,4317.5,4317.4,0.694]
[1757113594014,1.66313323,4317.5,4317.0,0.1162]
[1757113594216,0.7129,4316.8,4316.7,0.711]
[1757113594413,1.2856368,4316.8,4316.7,0.5181]
[1757113594622,1.5186368,4316.8,4316.1,0.3106]
[1757113594812,0.4166,4316.2,4316.1,0.711]
[1757113595014,0.7129,4316.2,4316.1,0.711]
[1757113596114,0.233,4316.4,4316.2,0.3106]
[1757113596320,0.233,4316.4,4316.3,0.711]
[1757113596521,0.80597554,4316.4,4316.3,0.711]
[1757113598924,0.57297554,4316.4,4316.3,0.711]
[1757113599124,0.57297554,4316.6,4316.3,0.711]
[1757113599420,0.98957554,4316.6,4316.5,0.4004]
[1757113599621,0.98957554,4316.6,4316.5,0.711]
[1757113600018,1.28587554,4316.6,4316.5,0.711]
[1757113606526,1.28587554,4316.6,4316.5,0.3106]
[1757113606729,1.28587554,4316.6,4316.5,0.5181]
[1757113611129,0.1273,4316.5,4315.9,3.2078]
[1757113611330,0.7028,4316.0,4315.9,0.4163]
[1757113611531,1.27577554,4316.0,4315.9,0.4163]
[1757113611832,1.27577554,4316.0,4315.9,0.7157]
[1757113612719,1.40307554,4316.0,4315.5,0.1162]
[1757113612924,0.7028,4315.7,4315.6,0.5037]
[1757113613229,1.27577554,4315.7,4315.6,0.5037]
[1757113614736,0.5221,4315.5,4315.4,0.2994]
[1757113615032,1.40159977,4315.5,4315.1,0.2994]
[1757113615223,0.8301,4315.5,4315.1,0.2994]
[1757113615631,0.8301,4315.5,4315.0,0.1265]
[1757113615833,0.308,4315.4,4315.2,0.2994]
[1757113616032,0.7028,4315.3,4315.2,0.5037]
[1757113617428,0.3948,4315.3,4314.7,3.2078]
[1757113617632,0.308,4315.2,4315.1,0.2043]
[1757113617930,0.7028,4315.2,4315.1,0.5037]
[1757113620333,0.7028,4315.2,4315.1,0.7157]
[1757113625942,1.2736779,4315.2,4315.1,0.7157]
[1757113626334,0.7028,4315.2,4315.1,0.7157]
[1757113634351,1.27370038,4315.2,4315.1,0.7157]
[1757113643257,1.27370038,4315.2,4315.1,1.00589691]
[1757113646862,1.27370038,4315.2,4315.1,0.29019691]
[1757113647756,0.7021,4315.1,4315.0,0.5116]
[1757113648060,1.27300038,4315.1,4315.0,0.801624]
[1757113648458,0.4008,4314.8,4314.7,0.5116]
[1757113648657,0.4008,4314.8,4314.7,0.80166246]
[1757113648658,1.27300038,4314.8,4314.7,0.80166246]
[1757113648859,1.27300038,4314.8,4314.7,0.99746246]
[1757113650464,1.27300038,4314.8,4314.7,0.60096246]
[1757113650666,1.27300038,4314.8,4314.7,0.80166246]
[1757113650862,1.27300038,4314.8,4314.7,0.99746246]
[1757113655370,1.27300038,4314.8,4314.7,1.00553662]
[1757113661566,1.27300038,4314.8,4314.7,0.80973662]
[1757113661869,1.27300038,4314.8,4314.5,0.3109]
[1757113662071,0.97170038,4314.7,4314.6,0.80970051]
[1757113662271,1.27300038,4314.7,4314.6,0.80970051]
[1757113666975,1.27300038,4314.7,4314.6,1.00550051]
[1757113673077,1.27300038,4314.7,4314.6,0.29810051]
[1757113673280,1.27300038,4314.7,4314.6,0.5117]
[1757113674578,0.76430038,4314.7,4314.6,0.7239]
[1757113675374,1.07290038,4314.7,4314.6,0.7239]
[1757113675982,1.07290038,4314.7,4314.6,1.02228143]
[1757113677079,1.26610038,4314.7,4314.6,1.02228143]
[1757113677279,1.26610038,4314.7,4314.6,1.02234538]
[1757113680773,0.6952,4314.7,4314.6,1.02234538]
[1757113680981,1.26865681,4314.7,4314.6,1.02234538]
[1757113686389,1.26865681,4314.7,4314.6,1.02221198]
[1757113686890,1.26865681,4314.7,4314.6,1.0222117]
[1757113692292,1.26865681,4314.7,4314.6,0.7239]
[1757113694995,1.50165681,4314.7,4314.6,0.7239]
[1757113697498,0.57345681,4314.7,4314.6,0.7239]
[1757113698401,0.57345681,4314.7,4314.6,1.01204834]
[1757113699595,0.57345681,4314.7,4314.6,4.45161833]
[1757113700002,0.57345681,4314.7,4314.6,4.21984834]
[1757113700191,0.233,4315.1,4315.0,0.8311]
[1757113700497,0.8063831,4315.1,4315.0,1.11924834]
[1757113702602,0.5733831,4315.1,4315.0,1.11924834]
[1757113702899,0.5139,4315.3,4315.2,0.4182]
[1757113703089,0.5139,4315.3,4315.2,0.7153]
[1757113703294,1.08697885,4315.3,4315.2,0.7153]
[1757113703594,1.28587885,4315.3,4315.2,0.7153]
[1757113712605,1.28587885,4315.3,4315.2,0.5093]
[1757113713804,0.3949,4314.8,4314.7,0.4182]
[1757113714007,0.3949,4314.8,4314.7,0.7153]
[1757113714008,0.7128,4314.8,4314.7,0.7153]
[1757113717312,0.196,4314.8,4314.7,0.7153]
[1757113722315,0.3529,4315.5,4314.7,0.4182]
[1757113722608,0.57285764,4315.4,4314.8,0.2971]
[1757113722914,1.28565764,4315.3,4315.2,0.5093]
[1757113726011,1.28565764,4315.3,4315.2,0.7153]
[1757113730218,1.28565764,4315.3,4315.2,1.00027486]
[1757113737724,1.28565764,4315.3,4315.2,0.5093]
[1757113738323,1.28565764,4315.3,4315.2,0.79396875]
[1757113739430,1.28565764,4315.3,4315.2,0.98996875]
[1757113742124,1.28565764,4315.3,4315.2,0.28466875]
[1757113742424,0.5104,4314.8,4314.7,0.7024]
[1757113742726,1.08325764,4314.8,4314.7,0.98711497]
[1757113742924,1.27935764,4314.8,4314.7,0.98711497]
[1757113749730,1.27935764,4314.8,4314.7,0.28471497]
[1757113750929,1.27935764,4314.8,4314.7,0.58291497]
[1757113751133,1.27935764,4314.8,4314.7,0.79111497]
[1757113751536,1.27935764,4314.8,4314.7,0.98711497]
[1757113753037,1.27935764,4314.8,4314.7,1.3063482]
[1757113753335,1.27935764,4314.8,4314.7,1.30634937]
[1757113754733,1.27935764,4314.8,4314.7,0.60394937]
[1757113759240,1.27935764,4314.8,4314.7,0.89894937]
[1757113759436,1.27935764,4314.8,4314.7,0.3192344]
[1757113762438,1.27935764,4314.8,4314.7,0.8107344]
[1757113763136,1.27935764,4314.8,4314.7,1.0124344]
[1757113770044,1.27935764,4314.8,4314.7,0.8107344]
[1757113773852,1.27935764,4314.8,4314.7,0.3192344]
[1757113780257,1.27935764,4314.8,4314.7,0.8107344]
[1757113780553,1.27935764,4314.8,4314.7,0.3192344]
[1757113781347,1.27935764,4314.8,4314.7,0.8107344]
[1757113783056,1.27935764,4314.8,4314.7,0.4915]
[1757113786862,1.27935764,4314.8,4314.7,0.6932]
[1757113787660,0.57285764,4314.8,4314.7,1.21616744]
[1757113787863,0.57285764,4314.8,4314.7,0.98440744]
[1757113788062,1.08035764,4314.8,4314.7,0.98440744]
[1757113792464,1.27665764,4314.8,4314.7,0.98440744]
[1757113795166,1.27665764,4314.8,4314.7,0.98507255]
[1757113799672,1.27665764,4314.8,4314.7,0.29187255]
[1757113799968,1.27665764,4314.8,4314.5,0.233]
[1757113800163,0.7167,4314.6,4314.1,3.2078]
[1757113800366,0.7167,4314.3,4314.2,1.02719926]
[1757113800566,1.28955764,4314.3,4314.2,1.02719926]
[1757113800768,1.28955764,4314.3,4314.2,1.23809926]
[1757113809671,1.28955764,4314.3,4314.2,0.52479926]
[1757113810374,1.28955764,4314.3,4314.2,0.82949926]
[1757113810569,1.28955764,4314.3,4314.2,0.59649926]
[1757113811974,1.28955764,4314.3,4314.2,0.29179926]
[1757113812974,1.28955764,4314.3,4314.2,0.59649926]
[1757113813175,1.28955764,4314.3,4314.2,0.91380054]
[1757113813378,1.28955764,4314.3,4314.2,1.11150054]
[1757113816575,1.28955764,4314.3,4314.2,1.32240054]
[1757113816776,0.98165764,4314.3,4314.2,1.32240054]
[1757113817780,1.28955764,4314.3,4314.2,1.32240054]
[1757113820080,1.28822615,4314.3,4314.2,1.32240054]
[1757113823790,1.28822615,4314.3,4314.2,1.32255065]
[1757113825291,0.98032615,4314.3,4314.2,1.32255065]
[1757113825592,1.09662615,4314.3,4314.2,1.32255065]
[1757113827192,0.57152615,4314.3,4314.2,1.32255065]
[1757113827394,0.5097,4315.2,4315.1,0.715]
[1757113827599,1.27625456,4315.2,4315.1,1.03245743]
[1757113829801,5.50799456,4315.2,4315.1,0.31745743]
[1757113830002,6.75734272,4315.2,4314.5,0.3077]
[1757113830202,0.7045,4314.6,4314.5,0.715]
[1757113830401,1.27625456,4314.6,4314.5,0.715]
[1757113831505,1.27625456,4314.6,4314.0,0.3597]
[1757113831704,3.2078,4314.9,4314.1,0.29196915]
[1757113831705,0.3126,4314.4,4314.1,0.29196915]
[1757113831920,1.27625456,4314.3,4314.2,0.80776915]
[1757113832204,1.27625456,4314.3,4314.2,0.29196915]
[1757113832806,1.27625456,4314.3,4314.2,0.59966915]
[1757113833006,1.27625456,4314.3,4314.2,0.80776915]
[1757113834409,1.27625456,4314.3,4314.2,0.80779371]
[1757113840710,1.27625456,4314.3,4314.2,0.29199371]
[1757113840913,1.27625456,4314.3,4314.2,0.80779371]
[1757113841111,1.27625456,4314.3,4314.2,1.00699371]
[1757113841309,1.27625456,4314.3,4314.2,0.715]
[1757113854825,1.27625456,4314.3,4314.2,1.01045292]
[1757113859327,1.27625456,4314.3,4314.2,1.01072521]
[1757113861635,1.27625456,4314.3,4314.2,0.81152521]
[1757113861830,0.1197,4314.0,4313.8,0.3089]
[1757113862031,0.3141,4313.8,4313.7,0.3089]
[1757113862230,1.27955456,4313.8,4313.7,0.81224377]
[1757113864328,1.27955456,4313.8,4313.7,1.01934377]
[1757113866231,1.27955456,4313.8,4313.7,0.7235]
[1757113871025,1.27955456,4313.8,4313.7,0.5164]
[1757113871231,0.96545456,4313.8,4313.5,0.3089]
[1757113871429,0.96545456,4313.7,4313.4,3.2078]
[1757113871634,0.3937,4313.7,4313.6,0.5164]
[1757113871836,0.96550753,4313.7,4313.6,0.5164]
[1757113872128,1.27960753,4313.7,4313.6,0.5164]
[1757113874437,1.27960753,4313.7,4313.6,0.7235]
[1757113875936,0.57180753,4313.7,4313.6,0.7235]
[1757113876141,1.27960753,4313.7,4313.6,1.00790729]
[1757113876739,0.8275,4313.5,4313.4,3.2078]
[1757113876933,1.39930753,4313.5,4313.4,3.7242]
[1757113878328,1.27960753,4313.5,4313.4,3.9313]
[1757113890953,1.25750753,4313.5,4313.4,3.9313]
[1757113895551,1.38060753,4313.5,4313.4,3.7242]
[1757113895852,1.38060753,4313.5,4313.4,3.4153]
[1757113896052,1.38060753,4313.5,4313.4,3.717]
[1757113896856,0.6909,4313.0,4312.9,0.6919]
[1757113897154,1.26270753,4313.0,4312.9,0.6919]
[1757113902153,0.57180753,4313.0,4312.9,0.6919]
[1757113902559,3.4998,4313.5,4312.9,0.6919]
[1757113902560,0.57180753,4313.4,4312.9,0.6919]
[1757113902764,0.57180753,4313.3,4313.2,0.3902]
[1757113902953,0.77550753,4313.3,4313.2,0.6919]
[1757113903355,1.06750753,4313.3,4313.2,0.6919]
[1757113903660,1.26270753,4313.3,4313.2,0.6919]
[1757113905459,0.57180753,4313.3,4313.2,0.6919]
[1757113905659,3.4115,4313.5,4313.4,0.3902]
[1757113905863,4.47079468,4313.5,4313.4,0.6919]
[1757113910059,0.57209468,4313.5,4313.4,0.6919]
[1757113910256,0.77069468,4313.5,4313.4,0.6919]
[1757113910660,0.77069468,4313.5,4313.4,0.97829976]
[1757113910860,0.77069468,4313.5,4313.4,1.21129976]
[1757113913662,0.57209468,4313.5,4313.4,1.21129976]
[1757113918765,1.07919468,4313.5,4313.4,1.21129976]
[1757113920663,0.77069468,4313.5,4313.4,1.21129976]
[1757113921166,1.07919468,4313.5,4313.4,0.9249]
[1757113921367,1.28579468,4313.5,4313.4,1.21412813]
[1757113922372,1.28579468,4313.5,4313.4,0.98112813]
[1757113922669,1.40389468,4313.5,4313.4,1.01892813]
[1757113923365,1.40389468,4313.5,4313.4,0.28922813]
[1757113928477,1.40389468,4313.5,4313.4,0.79532813]
[1757113929866,0.57169793,4313.5,4313.4,0.99722813]
[1757113932176,0.57169793,4313.5,4313.4,0.9972658]
[1757113934670,0.57169793,4313.5,4313.4,4.9972658]
[1757113934874,0.7137,4314.5,4314.4,0.3996]
[1757113935081,1.28551324,4314.5,4314.4,0.708]
[1757113936878,1.40361324,4314.5,4314.4,0.708]
[1757113937082,1.28551324,4314.5,4314.4,0.708]
[1757113937474,1.28551324,4314.5,4314.4,0.5061]
[1757113937780,1.28551324,4314.5,4314.0,0.3542]
[1757113937781,1.40361324,4314.5,4314.1,0.3084]
[1757113937981,1.40361324,4314.5,4314.1,0.1977]
[1757113937982,0.4052,4314.2,4314.1,0.1977]
[1757113938278,1.28551324,4314.2,4314.1,0.5061]
[1757113951488,1.28551324,4314.2,4314.1,0.7048]
[1757113957297,1.28551324,4314.2,4314.1,0.99514529]
[1757113960497,1.28551324,4314.2,4314.1,0.79644529]
[1757113961495,1.28551324,4314.2,4314.1,0.29034529]
[1757113961998,1.28551324,4314.2,4314.1,0.80434529]
[1757113966596,1.28551324,4314.2,4314.1,0.48434529]
[1757113966797,1.28551324,4314.2,4314.1,0.80434529]
[1757113967402,1.28551324,4314.2,4314.1,1.00304529]
[1757113971397,0.57181324,4314.2,4314.1,1.00304529]
[1757113971600,0.2926,4314.8,4314.1,1.23484529]
[1757113971912,0.2926,4314.8,4314.6,0.7307]
[1757113971913,0.57159233,4314.7,4314.6,0.7307]
[1757113972202,0.57159233,4314.7,4314.6,1.25304529]
[1757113972412,1.06499233,4314.7,4314.6,1.25304529]
[1757113973409,0.77239233,4314.7,4314.6,1.25304529]
[1757113974606,1.06499233,4314.7,4314.6,1.25304529]
[1757113975808,0.77239233,4314.7,4314.6,1.25304529]
[1757113976310,0.2008,4314.7,4314.6,1.25304529]
[1757113977006,0.2926,4315.3,4314.7,0.3183]
[1757113977209,0.4934,4315.3,4315.2,0.7307]
[1757113977403,0.6911,4315.3,4315.2,0.7307]
[1757113977710,1.26087486,4315.3,4315.2,0.7307]
[1757114000128,1.26087486,4315.3,4315.2,1.0277513]
[1757114009042,1.26087486,4315.3,4315.2,0.2970513]
[1757114009239,1.26087486,4315.3,4314.4,3.2078]
[1757114009240,8.70041486,4315.3,4314.6,0.232]
[1757114009440,0.6916,4314.5,4314.4,3.7228]
[1757114009631,1.26137486,4314.5,4314.4,3.7228]
[1757114010039,1.26137486,4314.5,4314.4,3.5207]
[1757114010240,1.29367486,4314.5,4314.1,0.232]
[1757114010444,0.6916,4314.2,4314.1,0.5449]
[1757114010740,1.26137486,4314.2,4314.1,0.5449]
[1757114011340,1.26137486,4314.2,4314.1,0.942]
[1757114011544,1.26137486,4314.2,4314.1,0.747]
[1757114011736,1.2617972,4314.2,4314.1,0.747]
[1757114012143,1.2617972,4314.2,4314.1,0.515]
[1757114012444,1.2617972,4314.2,4314.1,0.3129]
[1757114022053,1.2617972,4314.2,4314.1,0.515]
[1757114022246,1.2617972,4314.2,4314.1,0.3129]
[1757114023251,1.2617972,4314.2,4314.1,0.62915462]
[1757114024148,1.7255972,4314.2,4314.1,0.31625462]
[1757114024343,0.4172,4313.6,4313.5,0.3129]
[1757114024649,0.6916,4313.6,4313.5,0.62921612]